[Event "Titled Tuesday Blitz June 1 2021"]
[White "Garcia Garcia, Alejandro"]
[Black "Girish, A. Koushik"]
[WhiteFideId "3516334"]
[BlackFideId "5038448"]
[WhiteElo "2131"]
[BlackElo "2387"]
[Result "0-1"]
[Round "11"]
[TimeControl "180+1"]
[Date "2021.06.01"]
[WhiteClock "0:00:23"]
[BlackClock "0:00:30"]

1. Nf3 {[%clk 0:03:00]}  d6 {[%clk 0:02:59]} 2. g3 {[%clk 0:03:01]}  g6 {[%clk 0:02:58]} 3. Bg2 {[%clk 0:03:02]}  Bg7 {[%clk 0:02:58]} 4. d3 {[%clk 0:03:02]}  c5 {[%clk 0:02:57]} 5. O-O {[%clk 0:03:01]}  Nc6 {[%clk 0:02:58]} 6. e4 {[%clk 0:03:01]}  Rb8 {[%clk 0:02:58]} 7. a4 {[%clk 0:03:01]}  a6 {[%clk 0:02:57]} 8. c3 {[%clk 0:03:00]}  b5 {[%clk 0:02:57]} 9. axb5 {[%clk 0:03:01]}  axb5 {[%clk 0:02:58]} 10. d4 {[%clk 0:03:01]}  cxd4 {[%clk 0:02:48]} 11. cxd4 {[%clk 0:03:02]}  Bg4 {[%clk 0:02:48]} 12. Be3 {[%clk 0:02:57]}  Nf6 {[%clk 0:02:43]} 13. h3 {[%clk 0:02:55]}  Bxf3 {[%clk 0:02:39]} 14. Bxf3 {[%clk 0:02:55]}  Qd7 {[%clk 0:02:34]} 15. Bg2 {[%clk 0:02:46]}  O-O {[%clk 0:02:33]} 16. Nd2 {[%clk 0:02:41]}  Rfc8 {[%clk 0:02:29]} 17. Qb3 {[%clk 0:02:34]}  Qd8 {[%clk 0:02:06]} 18. Rfc1 {[%clk 0:02:30]}  e6 {[%clk 0:01:49]} 19. Ra6 {[%clk 0:01:54]}  Nxd4 {[%clk 0:01:40]} 20. Rxc8 {[%clk 0:01:52]}  Qxc8 {[%clk 0:01:40]} 21. Qa2 {[%clk 0:01:39]}  Ne8 {[%clk 0:01:04]} 22. Ra7 {[%clk 0:01:24]}  Nc6 {[%clk 0:00:59]} 23. Ra3 {[%clk 0:01:21]}  Nb4 {[%clk 0:00:59]} 24. Qb3 {[%clk 0:01:17]}  Nc2 {[%clk 0:00:59]} 25. Ra7 {[%clk 0:01:01]}  Nxe3 {[%clk 0:00:59]} 26. fxe3 {[%clk 0:00:58]}  Qc1+ {[%clk 0:00:57]} 27. Nf1 {[%clk 0:00:58]}  Qxb2 {[%clk 0:00:57]} 28. Qd3 {[%clk 0:00:57]}  Be5 {[%clk 0:00:52]} 29. Qd1 {[%clk 0:00:55]}  Nf6 {[%clk 0:00:48]} 30. Nd2 {[%clk 0:00:51]}  Rc8 {[%clk 0:00:45]} 31. Kh2 {[%clk 0:00:43]}  Rc1 {[%clk 0:00:42]} 32. Qb3 {[%clk 0:00:24]}  Qxd2 {[%clk 0:00:40]} 33. Qxb5 {[%clk 0:00:23]}  Qxe3 {[%clk 0:00:30]} 0-1


[Site "https://www.chess.com"]

[Event "Titled Tuesday Blitz June 1 2021"]
[White "Goncalves, Davi Sulzbacher"]
[Black "Donchenko, Alexander"]
[WhiteFideId "2154510"]
[BlackFideId "24603295"]
[WhiteElo "2107"]
[BlackElo "2553"]
[Result "1/2-1/2"]
[Round "11"]
[TimeControl "180+1"]
[Date "2021.06.01"]
[WhiteClock "0:00:07"]
[BlackClock "0:00:14"]

1. d4 {[%clk 0:02:43]}  d5 {[%clk 0:02:07]} 2. c4 {[%clk 0:02:42]}  dxc4 {[%clk 0:02:07]} 3. e4 {[%clk 0:02:39]}  b5 {[%clk 0:02:06]} 4. a4 {[%clk 0:02:37]}  c6 {[%clk 0:02:03]} 5. Nf3 {[%clk 0:02:36]}  e5 {[%clk 0:01:59]} 6. Nxe5 {[%clk 0:02:31]}  Nf6 {[%clk 0:01:59]} 7. Nc3 {[%clk 0:02:26]}  Bb4 {[%clk 0:01:59]} 8. Bg5 {[%clk 0:02:20]}  h6 {[%clk 0:01:57]} 9. Bxf6 {[%clk 0:02:16]}  Qxf6 {[%clk 0:01:58]} 10. Be2 {[%clk 0:02:15]}  Nd7 {[%clk 0:01:55]} 11. Nf3 {[%clk 0:02:09]}  Bb7 {[%clk 0:01:50]} 12. O-O {[%clk 0:02:08]}  a6 {[%clk 0:01:50]} 13. e5 {[%clk 0:01:49]}  Qg6 {[%clk 0:01:50]} 14. Nd2 {[%clk 0:01:32]}  O-O {[%clk 0:01:35]} 15. Bf3 {[%clk 0:01:31]}  Nb6 {[%clk 0:01:19]} 16. axb5 {[%clk 0:01:24]}  axb5 {[%clk 0:01:20]} 17. Rxa8 {[%clk 0:01:15]}  Bxa8 {[%clk 0:01:21]} 18. Nde4 {[%clk 0:01:03]}  Nd5 {[%clk 0:01:19]} 19. Nxd5 {[%clk 0:00:57]}  cxd5 {[%clk 0:01:20]} 20. Nc3 {[%clk 0:00:58]}  Bxc3 {[%clk 0:01:16]} 21. bxc3 {[%clk 0:00:58]}  Qb6 {[%clk 0:01:09]} 22. Qb1 {[%clk 0:00:52]}  b4 {[%clk 0:00:58]} 23. Qxb4 {[%clk 0:00:49]}  Qxb4 {[%clk 0:00:58]} 24. cxb4 {[%clk 0:00:50]}  Rb8 {[%clk 0:00:59]} 25. Rb1 {[%clk 0:00:49]}  Bc6 {[%clk 0:00:57]} 26. Kf1 {[%clk 0:00:45]}  c3 {[%clk 0:00:56]} 27. Ke1 {[%clk 0:00:44]}  c2 {[%clk 0:00:48]} 28. Rc1 {[%clk 0:00:44]}  Ba4 {[%clk 0:00:49]} 29. Bxd5 {[%clk 0:00:26]}  Rxb4 {[%clk 0:00:49]} 30. Be4 {[%clk 0:00:25]}  Rc4 {[%clk 0:00:37]} 31. f3 {[%clk 0:00:22]}  Rxd4 {[%clk 0:00:34]} 32. Bxc2 {[%clk 0:00:22]}  Bxc2 {[%clk 0:00:34]} 33. Rxc2 {[%clk 0:00:23]}  g5 {[%clk 0:00:34]} 34. Ke2 {[%clk 0:00:22]}  Rd5 {[%clk 0:00:33]} 35. Rc8+ {[%clk 0:00:22]}  Kg7 {[%clk 0:00:32]} 36. Re8 {[%clk 0:00:23]}  Ra5 {[%clk 0:00:31]} 37. h4 {[%clk 0:00:20]}  gxh4 {[%clk 0:00:28]} 38. e6 {[%clk 0:00:17]}  Re5+ {[%clk 0:00:27]} 39. Kf2 {[%clk 0:00:17]}  Rxe6 {[%clk 0:00:28]} 40. Rxe6 {[%clk 0:00:14]}  fxe6 {[%clk 0:00:29]} 41. Ke3 {[%clk 0:00:15]}  Kf6 {[%clk 0:00:27]} 42. Kf4 {[%clk 0:00:15]}  h5 {[%clk 0:00:27]} 43. Ke4 {[%clk 0:00:12]}  Kg5 {[%clk 0:00:16]} 44. Ke5 {[%clk 0:00:09]}  h3 {[%clk 0:00:16]} 45. gxh3 {[%clk 0:00:06]}  Kh4 {[%clk 0:00:17]} 46. Kxe6 {[%clk 0:00:06]}  Kg3 {[%clk 0:00:13]} 47. Kf5 {[%clk 0:00:06]}  h4 {[%clk 0:00:13]} 48. Kg5 {[%clk 0:00:06]}  Kxh3 {[%clk 0:00:11]} 49. f4 {[%clk 0:00:07]}  Kg3 {[%clk 0:00:12]} 50. f5 {[%clk 0:00:07]}  h3 {[%clk 0:00:13]} 51. f6 {[%clk 0:00:07]}  h2 {[%clk 0:00:13]} 52. f7 {[%clk 0:00:08]}  h1=Q {[%clk 0:00:14]} 53. f8=Q {[%clk 0:00:08]}  Qd5+ {[%clk 0:00:14]} 54. Qf5 {[%clk 0:00:08]}  Qxf5+ {[%clk 0:00:14]} 55. Kxf5 {[%clk 0:00:07]} 1/2-1/2


[Site "https://www.chess.com"]

[Event "Titled Tuesday Blitz June 1 2021"]
[White "Hryshchenko, Kamila"]
[Black "Tikhonov, Viacheslav"]
[WhiteFideId "14147491"]
[BlackFideId "44196407"]
[WhiteElo "1956"]
[BlackElo "1773"]
[Result "0-1"]
[Round "11"]
[TimeControl "180+1"]
[Date "2021.06.01"]
[WhiteClock "0:00:02"]
[BlackClock "0:00:49"]

1. e4 {[%clk 0:03:00]}  e6 {[%clk 0:02:59]} 2. d4 {[%clk 0:02:58]}  d5 {[%clk 0:02:59]} 3. Qe2 {[%clk 0:02:51]}  dxe4 {[%clk 0:02:53]} 4. Qxe4 {[%clk 0:02:49]}  Nf6 {[%clk 0:02:52]} 5. Qh4 {[%clk 0:02:48]}  Be7 {[%clk 0:02:51]} 6. Nf3 {[%clk 0:02:47]}  h6 {[%clk 0:02:50]} 7. Bd3 {[%clk 0:02:45]}  b6 {[%clk 0:02:50]} 8. O-O {[%clk 0:02:33]}  Bb7 {[%clk 0:02:51]} 9. Ne5 {[%clk 0:02:31]}  a6 {[%clk 0:02:37]} 10. Nc3 {[%clk 0:02:27]}  Nc6 {[%clk 0:02:36]} 11. Be3 {[%clk 0:02:21]}  Nxe5 {[%clk 0:02:30]} 12. dxe5 {[%clk 0:02:22]}  Nd5 {[%clk 0:02:31]} 13. Qg3 {[%clk 0:02:15]}  Bg5 {[%clk 0:02:24]} 14. f4 {[%clk 0:02:12]}  Nxe3 {[%clk 0:02:14]} 15. Qxe3 {[%clk 0:02:09]}  Be7 {[%clk 0:02:14]} 16. Kh1 {[%clk 0:02:00]}  Bc5 {[%clk 0:01:47]} 17. Qg3 {[%clk 0:01:58]}  Qe7 {[%clk 0:01:46]} 18. Ne4 {[%clk 0:01:40]}  O-O-O {[%clk 0:01:44]} 19. a3 {[%clk 0:01:33]}  f5 {[%clk 0:01:25]} 20. Nxc5 {[%clk 0:00:50]}  Qxc5 {[%clk 0:01:25]} 21. Qf2 {[%clk 0:00:50]}  Qc6 {[%clk 0:01:17]} 22. Rad1 {[%clk 0:00:47]}  g5 {[%clk 0:01:18]} 23. Qe2 {[%clk 0:00:22]}  Rd4 {[%clk 0:01:08]} 24. Bxa6 {[%clk 0:00:13]}  Rxf4 {[%clk 0:01:08]} 25. Rxf4 {[%clk 0:00:12]}  gxf4 {[%clk 0:01:09]} 26. Bxb7+ {[%clk 0:00:12]}  Kxb7 {[%clk 0:01:10]} 27. c3 {[%clk 0:00:10]}  Rg8 {[%clk 0:01:05]} 28. Rd4 {[%clk 0:00:09]}  Rg4 {[%clk 0:01:02]} 29. Qf3 {[%clk 0:00:09]}  Qxf3 {[%clk 0:00:59]} 30. gxf3 {[%clk 0:00:10]}  Rh4 {[%clk 0:00:58]} 31. Kg2 {[%clk 0:00:10]}  Kc6 {[%clk 0:00:57]} 32. Rd8 {[%clk 0:00:08]}  Rh5 {[%clk 0:00:57]} 33. Rd4 {[%clk 0:00:05]}  Rh4 {[%clk 0:00:54]} 34. a4 {[%clk 0:00:04]}  Kc5 {[%clk 0:00:50]} 35. b4+ {[%clk 0:00:04]}  Kc6 {[%clk 0:00:50]} 36. a5 {[%clk 0:00:03]}  bxa5 {[%clk 0:00:51]} 37. bxa5 {[%clk 0:00:02]}  Kb5 {[%clk 0:00:52]} 38. Rd7 {[%clk 0:00:02]}  Rh5 {[%clk 0:00:48]} 39. Rxc7 {[%clk 0:00:02]}  Rg5+ {[%clk 0:00:49]} 40. Kf2 {[%clk 0:00:02]}  Rg6 {[%clk 0:00:50]} 41. Rb7+ {[%clk 0:00:02]}  Kxa5 {[%clk 0:00:50]} 42. Rb8 {[%clk 0:00:02]}  Ka6 {[%clk 0:00:50]} 43. Rb4 {[%clk 0:00:02]}  h5 {[%clk 0:00:50]} 44. Rb1 {[%clk 0:00:02]}  Rg7 {[%clk 0:00:49]} 45. Rb4 {[%clk 0:00:02]}  Rc7 {[%clk 0:00:49]} 0-1


[Site "https://www.chess.com"]

[Event "Titled Tuesday Blitz June 1 2021"]
[White "Isajevsky, Anton"]
[Black "Grieve, Harry"]
[WhiteFideId "4142500"]
[BlackFideId "426520"]
[WhiteElo "2510"]
[BlackElo "2191"]
[Result "0-1"]
[Round "11"]
[TimeControl "180+1"]
[Date "2021.06.01"]
[WhiteClock "0:00:10"]
[BlackClock "0:01:30"]

1. c4 {[%clk 0:03:00]}  f5 {[%clk 0:02:59]} 2. g3 {[%clk 0:02:58]}  Nf6 {[%clk 0:02:59]} 3. Bg2 {[%clk 0:02:59]}  g6 {[%clk 0:02:59]} 4. Nc3 {[%clk 0:02:59]}  Bg7 {[%clk 0:02:59]} 5. d3 {[%clk 0:02:54]}  O-O {[%clk 0:02:59]} 6. e3 {[%clk 0:02:54]}  d6 {[%clk 0:02:59]} 7. Nge2 {[%clk 0:02:53]}  e5 {[%clk 0:02:59]} 8. O-O {[%clk 0:02:53]}  Nc6 {[%clk 0:02:59]} 9. Rb1 {[%clk 0:02:53]}  Qe7 {[%clk 0:02:58]} 10. b4 {[%clk 0:02:49]}  Bd7 {[%clk 0:02:54]} 11. Nd5 {[%clk 0:02:36]}  Nxd5 {[%clk 0:02:54]} 12. cxd5 {[%clk 0:02:35]}  Nd8 {[%clk 0:02:54]} 13. Qb3 {[%clk 0:02:25]}  Nf7 {[%clk 0:02:51]} 14. Bd2 {[%clk 0:02:18]}  h6 {[%clk 0:02:45]} 15. Rfc1 {[%clk 0:02:17]}  Rac8 {[%clk 0:02:45]} 16. Rc2 {[%clk 0:02:14]}  g5 {[%clk 0:02:40]} 17. Rbc1 {[%clk 0:02:07]}  Qd8 {[%clk 0:02:39]} 18. a4 {[%clk 0:01:57]}  f4 {[%clk 0:02:36]} 19. Nc3 {[%clk 0:01:55]}  h5 {[%clk 0:02:20]} 20. Nb5 {[%clk 0:01:27]}  Bxb5 {[%clk 0:02:20]} 21. axb5 {[%clk 0:01:28]}  Bh6 {[%clk 0:02:11]} 22. Rc4 {[%clk 0:00:59]}  g4 {[%clk 0:01:45]} 23. Qc2 {[%clk 0:00:17]}  fxe3 {[%clk 0:01:37]} 24. fxe3 {[%clk 0:00:15]}  Ng5 {[%clk 0:01:37]} 25. Rxc7 {[%clk 0:00:14]}  Rxc7 {[%clk 0:01:38]} 26. Qxc7 {[%clk 0:00:14]}  Qf6 {[%clk 0:01:39]} 27. Rf1 {[%clk 0:00:13]}  Nf3+ {[%clk 0:01:39]} 28. Kh1 {[%clk 0:00:11]}  Qg6 {[%clk 0:01:32]} 29. Bxf3 {[%clk 0:00:10]}  Qxd3 {[%clk 0:01:30]} 0-1


[Site "https://www.chess.com"]

[Event "Titled Tuesday Blitz June 1 2021"]
[White "Jakubowski, Krzysztof"]
[Black "Prydun, Andriy"]
[WhiteFideId "1112848"]
[BlackFideId "14145898"]
[WhiteElo "2462"]
[BlackElo "2033"]
[Result "0-1"]
[Round "11"]
[TimeControl "180+1"]
[Date "2021.06.01"]
[WhiteClock "0:00:31"]
[BlackClock "0:01:09"]

1. e4 {[%clk 0:01:58]}  d5 {[%clk 0:03:00]} 2. exd5 {[%clk 0:01:57]}  Qxd5 {[%clk 0:03:01]} 3. Nc3 {[%clk 0:01:57]}  Qd6 {[%clk 0:03:01]} 4. Bc4 {[%clk 0:01:55]}  Nf6 {[%clk 0:03:02]} 5. d3 {[%clk 0:01:52]}  Be6 {[%clk 0:03:00]} 6. Bb3 {[%clk 0:01:46]}  Bxb3 {[%clk 0:02:58]} 7. axb3 {[%clk 0:01:47]}  c6 {[%clk 0:02:56]} 8. Nge2 {[%clk 0:01:45]}  Nbd7 {[%clk 0:02:50]} 9. O-O {[%clk 0:01:45]}  e6 {[%clk 0:02:48]} 10. Re1 {[%clk 0:01:41]}  Qb8 {[%clk 0:02:46]} 11. Bf4 {[%clk 0:01:40]}  Bd6 {[%clk 0:02:46]} 12. Bxd6 {[%clk 0:01:40]}  Qxd6 {[%clk 0:02:46]} 13. Ng3 {[%clk 0:01:40]}  O-O {[%clk 0:02:45]} 14. Nge4 {[%clk 0:01:40]}  Qc7 {[%clk 0:02:44]} 15. Qf3 {[%clk 0:01:38]}  Rfd8 {[%clk 0:02:42]} 16. Qg3 {[%clk 0:01:38]}  Qxg3 {[%clk 0:02:41]} 17. hxg3 {[%clk 0:01:39]}  a6 {[%clk 0:02:20]} 18. Ra5 {[%clk 0:01:37]}  Kf8 {[%clk 0:02:17]} 19. f3 {[%clk 0:01:31]}  h6 {[%clk 0:02:09]} 20. g4 {[%clk 0:01:31]}  Nd5 {[%clk 0:02:07]} 21. Nxd5 {[%clk 0:01:28]}  cxd5 {[%clk 0:02:03]} 22. Nd2 {[%clk 0:01:25]}  Rac8 {[%clk 0:02:01]} 23. c3 {[%clk 0:01:25]}  Nc5 {[%clk 0:02:00]} 24. d4 {[%clk 0:01:22]}  Nd3 {[%clk 0:02:00]} 25. Rb1 {[%clk 0:01:23]}  e5 {[%clk 0:01:51]} 26. dxe5 {[%clk 0:01:20]}  Nxe5 {[%clk 0:01:52]} 27. Kf1 {[%clk 0:01:10]}  Nc6 {[%clk 0:01:51]} 28. Raa1 {[%clk 0:01:06]}  d4 {[%clk 0:01:51]} 29. Ne4 {[%clk 0:01:00]}  Ne5 {[%clk 0:01:48]} 30. Rd1 {[%clk 0:00:57]}  dxc3 {[%clk 0:01:41]} 31. bxc3 {[%clk 0:00:58]}  Rd3 {[%clk 0:01:32]} 32. Rxd3 {[%clk 0:00:56]}  Nxd3 {[%clk 0:01:32]} 33. Ke2 {[%clk 0:00:52]}  Nc5 {[%clk 0:01:31]} 34. b4 {[%clk 0:00:49]}  Nxe4 {[%clk 0:01:31]} 35. fxe4 {[%clk 0:00:49]}  Rxc3 {[%clk 0:01:31]} 36. Rd1 {[%clk 0:00:48]}  Ke7 {[%clk 0:01:31]} 37. Rd5 {[%clk 0:00:43]}  Rc4 {[%clk 0:01:26]} 38. Re5+ {[%clk 0:00:41]}  Kd6 {[%clk 0:01:25]} 39. Rd5+ {[%clk 0:00:41]}  Ke6 {[%clk 0:01:25]} 40. Kf3 {[%clk 0:00:37]}  Rxb4 {[%clk 0:01:25]} 41. Rd8 {[%clk 0:00:38]}  a5 {[%clk 0:01:22]} 42. Re8+ {[%clk 0:00:35]}  Kd7 {[%clk 0:01:22]} 43. Rg8 {[%clk 0:00:34]}  a4 {[%clk 0:01:20]} 44. Rxg7 {[%clk 0:00:34]}  a3 {[%clk 0:01:20]} 45. Rxf7+ {[%clk 0:00:34]}  Ke6 {[%clk 0:01:15]} 46. Rf8 {[%clk 0:00:29]}  Ra4 {[%clk 0:01:13]} 47. Re8+ {[%clk 0:00:30]}  Kf7 {[%clk 0:01:12]} 48. Rb8 {[%clk 0:00:30]}  Ra7 {[%clk 0:01:09]} 49. Rxb7+ {[%clk 0:00:31]}  Rxb7 {[%clk 0:01:09]} 0-1


[Site "https://www.chess.com"]

[Event "Titled Tuesday Blitz June 1 2021"]
[White "Karttunen, Mika"]
[Black "Iskusnyh, Sergei"]
[WhiteFideId "502081"]
[BlackFideId "4120027"]
[WhiteElo "2343"]
[BlackElo "2492"]
[Result "1-0"]
[Round "11"]
[TimeControl "180+1"]
[Date "2021.06.01"]
[WhiteClock "0:00:23"]
[BlackClock "0:00:03"]

1. e4 {[%clk 0:03:00]}  e6 {[%clk 0:02:59]} 2. d4 {[%clk 0:03:00]}  d5 {[%clk 0:02:59]} 3. Nc3 {[%clk 0:02:59]}  Nf6 {[%clk 0:02:59]} 4. Bg5 {[%clk 0:02:58]}  dxe4 {[%clk 0:02:59]} 5. Nxe4 {[%clk 0:02:56]}  Nbd7 {[%clk 0:02:59]} 6. Nf3 {[%clk 0:02:44]}  h6 {[%clk 0:02:59]} 7. Nxf6+ {[%clk 0:02:32]}  Nxf6 {[%clk 0:02:59]} 8. Bxf6 {[%clk 0:02:23]}  Qxf6 {[%clk 0:02:58]} 9. Bb5+ {[%clk 0:02:20]}  c6 {[%clk 0:02:58]} 10. Bd3 {[%clk 0:02:19]}  g6 {[%clk 0:02:58]} 11. O-O {[%clk 0:02:12]}  Bg7 {[%clk 0:02:59]} 12. Re1 {[%clk 0:02:10]}  O-O {[%clk 0:02:58]} 13. Ne5 {[%clk 0:01:53]}  Rd8 {[%clk 0:02:56]} 14. c3 {[%clk 0:01:52]}  Bd7 {[%clk 0:02:56]} 15. Re3 {[%clk 0:01:42]}  Be8 {[%clk 0:02:56]} 16. Qe2 {[%clk 0:01:32]}  Rac8 {[%clk 0:02:46]} 17. b4 {[%clk 0:01:28]}  a5 {[%clk 0:02:42]} 18. a3 {[%clk 0:01:24]}  axb4 {[%clk 0:02:40]} 19. axb4 {[%clk 0:01:24]}  Ra8 {[%clk 0:02:40]} 20. Qb2 {[%clk 0:01:11]}  Qe7 {[%clk 0:02:22]} 21. Bc4 {[%clk 0:01:01]}  Rxa1+ {[%clk 0:02:13]} 22. Qxa1 {[%clk 0:00:59]}  Qc7 {[%clk 0:01:58]} 23. Re2 {[%clk 0:00:52]}  Kh7 {[%clk 0:01:48]} 24. h4 {[%clk 0:00:47]}  h5 {[%clk 0:01:44]} 25. Nf3 {[%clk 0:00:43]}  Bf6 {[%clk 0:01:44]} 26. g3 {[%clk 0:00:43]}  Kg7 {[%clk 0:01:42]} 27. Ra2 {[%clk 0:00:42]}  Bd7 {[%clk 0:01:31]} 28. Ra7 {[%clk 0:00:39]}  Bc8 {[%clk 0:01:30]} 29. Qa5 {[%clk 0:00:38]}  Qe7 {[%clk 0:01:26]} 30. Qc5 {[%clk 0:00:35]}  Qc7 {[%clk 0:01:17]} 31. b5 {[%clk 0:00:35]}  Be7 {[%clk 0:01:06]} 32. b6 {[%clk 0:00:29]}  Qd7 {[%clk 0:00:56]} 33. Qe5+ {[%clk 0:00:28]}  Bf6 {[%clk 0:00:56]} 34. Qb8 {[%clk 0:00:26]}  e5 {[%clk 0:00:47]} 35. Nxe5 {[%clk 0:00:25]}  Qf5 {[%clk 0:00:34]} 36. Qc7 {[%clk 0:00:25]}  Rf8 {[%clk 0:00:06]} 37. Nxf7 {[%clk 0:00:24]}  Bd7 {[%clk 0:00:03]} 38. Rxb7 {[%clk 0:00:23]} 1-0


[Site "https://www.chess.com"]

[Event "Titled Tuesday Blitz June 1 2021"]
[White "Kavyev, Ruslan"]
[Black "Richter, Nils"]
[WhiteFideId "34110981"]
[BlackFideId "12990809"]
[WhiteElo "2172"]
[BlackElo "2289"]
[Result "1-0"]
[Round "11"]
[TimeControl "180+1"]
[Date "2021.06.01"]
[WhiteClock "0:02:15"]
[BlackClock "0:00:40"]

1. e4 {[%clk 0:03:00]}  c5 {[%clk 0:02:57]} 2. Nf3 {[%clk 0:03:01]}  d6 {[%clk 0:02:58]} 3. d4 {[%clk 0:03:01]}  cxd4 {[%clk 0:02:58]} 4. Nxd4 {[%clk 0:03:02]}  Nf6 {[%clk 0:02:59]} 5. Nc3 {[%clk 0:03:03]}  a6 {[%clk 0:03:00]} 6. a3 {[%clk 0:03:04]}  e5 {[%clk 0:02:57]} 7. Nf5 {[%clk 0:03:04]}  d5 {[%clk 0:02:57]} 8. Bg5 {[%clk 0:03:02]}  d4 {[%clk 0:02:58]} 9. Bxf6 {[%clk 0:03:02]}  gxf6 {[%clk 0:02:58]} 10. Nb1 {[%clk 0:03:00]}  Qb6 {[%clk 0:02:55]} 11. Nd2 {[%clk 0:02:58]}  Be6 {[%clk 0:02:46]} 12. Bd3 {[%clk 0:02:57]}  Nd7 {[%clk 0:02:44]} 13. O-O {[%clk 0:02:56]}  Nc5 {[%clk 0:02:36]} 14. b4 {[%clk 0:02:56]}  Nxd3 {[%clk 0:02:35]} 15. cxd3 {[%clk 0:02:57]}  O-O-O {[%clk 0:02:26]} 16. Rc1+ {[%clk 0:02:53]}  Kb8 {[%clk 0:02:26]} 17. Nc4 {[%clk 0:02:52]}  Qb5 {[%clk 0:02:20]} 18. Qb3 {[%clk 0:02:46]}  h5 {[%clk 0:02:07]} 19. Rc2 {[%clk 0:02:42]}  h4 {[%clk 0:02:03]} 20. h3 {[%clk 0:02:42]}  Rg8 {[%clk 0:02:01]} 21. Rb1 {[%clk 0:02:42]}  Bxf5 {[%clk 0:01:53]} 22. exf5 {[%clk 0:02:42]}  Qd5 {[%clk 0:01:54]} 23. f3 {[%clk 0:02:33]}  Qxf3 {[%clk 0:01:52]} 24. b5 {[%clk 0:02:33]}  a5 {[%clk 0:01:47]} 25. Nxa5 {[%clk 0:02:29]}  Bc5 {[%clk 0:00:57]} 26. Nc6+ {[%clk 0:02:28]}  bxc6 {[%clk 0:00:57]} 27. bxc6+ {[%clk 0:02:29]}  Kc7 {[%clk 0:00:57]} 28. Qxf7+ {[%clk 0:02:25]}  Kxc6 {[%clk 0:00:43]} 29. Rxc5+ {[%clk 0:02:15]}  Kxc5 {[%clk 0:00:41]} 30. Qc7+ {[%clk 0:02:15]}  Qc6 {[%clk 0:00:38]} 31. Rc1+ {[%clk 0:02:15]}  Kb5 {[%clk 0:00:39]} 32. Qxc6+ {[%clk 0:02:15]}  Ka5 {[%clk 0:00:40]} 33. Rc5# {[%clk 0:02:15]} 1-0


[Site "https://www.chess.com"]

[Event "Titled Tuesday Blitz June 1 2021"]
[White "Kololli, Martin"]
[Black "Mazur, Stefan"]
[WhiteFideId "12936910"]
[BlackFideId "14909332"]
[WhiteElo "2039"]
[BlackElo "2437"]
[Result "1-0"]
[Round "11"]
[TimeControl "180+1"]
[Date "2021.06.01"]
[WhiteClock "0:00:09"]
[BlackClock "0:00:16"]

1. e4 {[%clk 0:03:00]}  e5 {[%clk 0:02:56]} 2. Nf3 {[%clk 0:02:59]}  Nc6 {[%clk 0:02:55]} 3. Bc4 {[%clk 0:02:57]}  Nf6 {[%clk 0:02:53]} 4. O-O {[%clk 0:02:56]}  Nxe4 {[%clk 0:02:52]} 5. Nc3 {[%clk 0:02:56]}  Nxc3 {[%clk 0:02:44]} 6. dxc3 {[%clk 0:02:57]}  Be7 {[%clk 0:02:44]} 7. Qd5 {[%clk 0:02:55]}  O-O {[%clk 0:02:43]} 8. Nxe5 {[%clk 0:02:54]}  Nxe5 {[%clk 0:02:42]} 9. Qxe5 {[%clk 0:02:55]}  d6 {[%clk 0:02:22]} 10. Qg3 {[%clk 0:02:48]}  Be6 {[%clk 0:02:16]} 11. Bd3 {[%clk 0:02:34]}  Qd7 {[%clk 0:01:56]} 12. Re1 {[%clk 0:02:24]}  Rfe8 {[%clk 0:01:54]} 13. Bg5 {[%clk 0:02:21]}  Bxg5 {[%clk 0:01:09]} 14. Qxg5 {[%clk 0:02:21]}  h6 {[%clk 0:01:05]} 15. Qh4 {[%clk 0:02:19]}  Bf5 {[%clk 0:00:59]} 16. Qd4 {[%clk 0:01:45]}  Bxd3 {[%clk 0:00:55]} 17. Qxd3 {[%clk 0:01:46]}  Rxe1+ {[%clk 0:00:52]} 18. Rxe1 {[%clk 0:01:44]}  Re8 {[%clk 0:00:53]} 19. Re3 {[%clk 0:01:36]}  Re6 {[%clk 0:00:47]} 20. h3 {[%clk 0:01:23]}  Qe7 {[%clk 0:00:44]} 21. Rxe6 {[%clk 0:01:22]}  Qxe6 {[%clk 0:00:44]} 22. a3 {[%clk 0:00:40]}  Qe1+ {[%clk 0:00:42]} 23. Qf1 {[%clk 0:00:39]}  Qd2 {[%clk 0:00:40]} 24. Qb5 {[%clk 0:00:36]}  Qc1+ {[%clk 0:00:30]} 25. Kh2 {[%clk 0:00:31]}  Qf4+ {[%clk 0:00:28]} 26. Kg1 {[%clk 0:00:31]}  b6 {[%clk 0:00:27]} 27. Qe8+ {[%clk 0:00:21]}  Kh7 {[%clk 0:00:27]} 28. g3 {[%clk 0:00:20]}  Qf5 {[%clk 0:00:25]} 29. h4 {[%clk 0:00:17]}  Kg6 {[%clk 0:00:22]} 30. Qe2 {[%clk 0:00:14]}  Qe5 {[%clk 0:00:19]} 31. Qd3+ {[%clk 0:00:14]}  f5 {[%clk 0:00:19]} 32. Kf1 {[%clk 0:00:10]}  Kf6 {[%clk 0:00:19]} 33. Qd4 {[%clk 0:00:07]}  c5 {[%clk 0:00:16]} 34. Qd3 {[%clk 0:00:04]}  g5 {[%clk 0:00:15]} 35. c4 {[%clk 0:00:04]}  gxh4 {[%clk 0:00:15]} 36. gxh4 {[%clk 0:00:05]}  Qh2 {[%clk 0:00:15]} 37. Ke2 {[%clk 0:00:04]}  Ke6 {[%clk 0:00:13]} 38. Qe3+ {[%clk 0:00:03]}  Qe5 {[%clk 0:00:13]} 39. Kd3 {[%clk 0:00:04]}  Qxe3+ {[%clk 0:00:13]} 40. Kxe3 {[%clk 0:00:05]}  Ke5 {[%clk 0:00:13]} 41. f4+ {[%clk 0:00:04]}  Kf6 {[%clk 0:00:14]} 42. Kf3 {[%clk 0:00:04]}  Kg6 {[%clk 0:00:14]} 43. Kg3 {[%clk 0:00:04]}  Kh5 {[%clk 0:00:14]} 44. Kh3 {[%clk 0:00:05]}  a6 {[%clk 0:00:14]} 45. Kg3 {[%clk 0:00:05]}  b5 {[%clk 0:00:15]} 46. cxb5 {[%clk 0:00:05]}  axb5 {[%clk 0:00:13]} 47. b3 {[%clk 0:00:05]}  Kg6 {[%clk 0:00:12]} 48. a4 {[%clk 0:00:06]}  bxa4 {[%clk 0:00:13]} 49. bxa4 {[%clk 0:00:07]}  Kf6 {[%clk 0:00:13]} 50. a5 {[%clk 0:00:07]}  Ke7 {[%clk 0:00:14]} 51. a6 {[%clk 0:00:08]}  Kd7 {[%clk 0:00:14]} 52. a7 {[%clk 0:00:09]}  Kc7 {[%clk 0:00:15]} 53. a8=Q {[%clk 0:00:10]}  Kb6 {[%clk 0:00:16]} 54. Qg8 {[%clk 0:00:09]} 1-0


[Site "https://www.chess.com"]